bitfinex/quotes_BTCUSD_20251031
["timestamp","ask_amount","ask_price","bid_price","bid_amount"]
[1761878916414,2.99901323,108940.0,108930.0,0.10778359]
[1761878916571,2.99901323,108940.0,108930.0,0.11278359]
[1761878916775,2.49901323,108940.0,108930.0,0.11678359]
[1761878920246,2.51591115,108940.0,108930.0,0.01033359]
[1761878920450,2.75056531,108940.0,108930.0,0.01033359]
[1761878920647,2.77518615,108940.0,108930.0,0.01033359]
[1761878921613,2.77518615,108940.0,108930.0,0.00633359]
[1761878921824,3.28618614,108940.0,108930.0,0.00733359]
[1761878922303,3.29618689,108940.0,108930.0,0.00733359]
[1761878922523,3.29618689,108940.0,108930.0,0.00233359]
[1761878922730,0.55982014,108910.0,108900.0,0.0026]
[1761878922933,2.71585226,108910.0,108900.0,0.0026]
[1761878923147,2.74101913,108910.0,108900.0,0.0026]
[1761878924416,2.74101913,108910.0,108900.0,0.0036]
[1761878925025,2.74101913,108910.0,108900.0,0.0046]
[1761878925242,3.05738127,108910.0,108900.0,0.0046]
[1761878925449,3.24101913,108910.0,108900.0,0.0046]
[1761878927669,3.2554241,108910.0,108900.0,0.0046]
[1761878927883,3.32576747,108910.0,108900.0,0.0046]
[1761878928275,3.32576747,108910.0,108900.0,0.00527409]
[1761878929115,3.35038831,108910.0,108900.0,0.00527409]
[1761878929975,3.35038831,108910.0,108900.0,0.00427409]
[1761878930196,3.35138831,108910.0,108900.0,0.00427409]
[1761878930356,3.35138831,108910.0,108900.0,0.00327409]
[1761878930563,2.60829139,108900.0,108890.0,0.0004]
[1761878930761,2.76383945,108900.0,108890.0,0.0004]
[1761878930991,2.53737493,108900.0,108890.0,0.00062474]
[1761878931181,2.72102965,108900.0,108890.0,0.00062474]
[1761878931761,2.72102965,108900.0,108890.0,0.00362474]
[1761878933077,2.75721193,108900.0,108890.0,0.00362474]
[1761878933318,2.57355721,108900.0,108890.0,0.00362474]
[1761878933517,2.54893637,108900.0,108890.0,0.00362474]
[1761878933726,2.97729109,108900.0,108890.0,0.00362474]
[1761878934356,2.79363637,108900.0,108890.0,0.00362474]
[1761878934541,2.75745409,108900.0,108890.0,0.00362474]
[1761878934973,2.94110881,108900.0,108890.0,0.00362474]
[1761878935284,2.75745409,108900.0,108890.0,0.00362474]
[1761878936859,3.29363637,108900.0,108890.0,0.00362474]
[1761878939060,3.30804349,108900.0,108890.0,0.00362474]
[1761878940352,3.29279349,108900.0,108890.0,0.00362474]
[1761878940723,3.26895994,108900.0,108890.0,0.06105474]
[1761878940936,3.25455282,108900.0,108890.0,0.06105474]
[1761878941717,3.23930282,108900.0,108890.0,0.18667474]
[1761878941982,3.25455282,108900.0,108890.0,0.10832474]
[1761878942182,2.70312054,108900.0,108890.0,0.39471348]
[1761878942407,2.45842054,108900.0,108890.0,0.37634633]
[1761878942619,2.10814938,108900.0,108890.0,0.37634633]
[1761878943193,2.10814938,108900.0,108890.0,0.37534633]
[1761878943528,2.44814938,108900.0,108890.0,0.19167474]
[1761878943742,2.46339938,108900.0,108890.0,0.11132474]
[1761878943990,2.47864938,108900.0,108890.0,0.01062474]
[1761878944201,2.49554466,108900.0,108890.0,0.01062474]
[1761878944395,2.53172694,108900.0,108890.0,0.01062474]
[1761878944693,2.73921521,108900.0,108890.0,0.01062474]
[1761878945020,2.73921521,108900.0,108890.0,0.00062474]
[1761878945256,2.73921521,108900.0,108890.0,0.00362474]
[1761878945446,2.55556049,108900.0,108890.0,0.00362474]
[1761878946054,2.54031049,108900.0,108890.0,0.00362474]
[1761878946404,2.54031049,108900.0,108890.0,0.06305474]
[1761878947147,3.04031049,108900.0,108890.0,0.06305474]
[1761878947534,3.04031049,108900.0,108890.0,0.00562474]
[1761878948419,3.30026049,108900.0,108890.0,0.00562474]
[1761878948598,3.48391521,108900.0,108890.0,0.00562474]
[1761878950073,3.28752614,108900.0,108890.0,0.00562474]
[1761878950965,3.10387142,108900.0,108890.0,0.00562474]
[1761878951415,3.05243914,108900.0,108890.0,0.00562474]
[1761878951864,3.05243914,108900.0,108890.0,0.06305474]
[1761878952114,2.55243914,108900.0,108890.0,0.06305474]
[1761878953132,2.55243914,108900.0,108890.0,0.00562474]
[1761878954079,2.55243914,108900.0,108890.0,0.06272474]
[1761878954492,2.55243914,108900.0,108890.0,0.00562474]
[1761878955662,2.55243914,108900.0,108890.0,0.06272474]
[1761878956583,2.55243914,108900.0,108890.0,0.00562474]
[1761878957017,3.05243914,108900.0,108890.0,0.00562474]
[1761878957635,3.05243914,108900.0,108890.0,0.05972474]
[1761878957833,3.05243914,108900.0,108890.0,0.11975189]
[1761878958822,3.03718914,108900.0,108890.0,0.11975189]
[1761878959030,3.01335559,108900.0,108890.0,0.36647633]
[1761878959899,3.01739559,108900.0,108890.0,0.10138474]
[1761878960107,3.04061122,108900.0,108890.0,0.18280474]
[1761878961070,3.05449038,108900.0,108890.0,0.10138474]
[1761878961475,3.05455777,108900.0,108890.0,0.00562474]
[1761878961674,2.55455777,108900.0,108890.0,0.00562474]
[1761878961882,2.55455777,108900.0,108890.0,0.05972474]
[1761878962653,2.55051777,108900.0,108890.0,0.18280474]
[1761878962793,2.55051777,108900.0,108890.0,0.36647633]
[1761878962993,2.55455777,108900.0,108890.0,0.10138474]
[1761878964936,2.55051777,108900.0,108890.0,0.36647633]
[1761878965339,2.55051777,108900.0,108890.0,0.18280474]
[1761878966950,2.55051777,108900.0,108890.0,0.36647633]
[1761878967594,2.5649226,108900.0,108890.0,0.36647633]
[1761878969263,2.5207043,108900.0,108890.0,0.36647633]
[1761878969650,2.41648046,108900.0,108890.0,0.36647633]
[1761878970517,2.41648046,108900.0,108890.0,0.36347633]
[1761878970719,2.41648046,108900.0,108890.0,0.37047633]
[1761878971183,2.41648046,108900.0,108890.0,0.36347633]
[1761878971618,2.41648046,108900.0,108890.0,0.36847633]
[1761878971842,2.17178046,108900.0,108890.0,0.37247633]
[1761878972276,2.17178046,108900.0,108890.0,0.36847633]
[1761878972481,2.17278046,108900.0,108890.0,0.37347633]
[1761878972693,2.17278046,108900.0,108890.0,0.36647633]
[1761878973105,2.17278046,108900.0,108890.0,0.37347633]
[1761878975787,2.17273457,108900.0,108890.0,0.37347633]
[1761878975960,2.26255358,108900.0,108890.0,0.18980474]
[1761878976166,2.26255358,108900.0,108890.0,0.37347633]
[1761878977251,2.26255358,108900.0,108890.0,0.18980474]
[1761878977475,2.26255358,108900.0,108890.0,0.37347633]
[1761878978039,2.2914895,108900.0,108890.0,0.37347633]
[1761878978669,2.26255358,108900.0,108890.0,0.43335876]
[1761878979030,2.26255358,108900.0,108890.0,0.37347633]
[1761878979578,0.36916953,108900.0,108890.0,0.37347633]
[1761878981048,2.36916953,108900.0,108890.0,0.37347633]
[1761878983711,2.39810545,108900.0,108890.0,0.37347633]
[1761878984539,2.36916953,108900.0,108890.0,0.37347633]
[1761878986708,0.36916953,108900.0,108890.0,0.37347633]
[1761878991918,0.02916953,108900.0,108890.0,0.37347633]
[1761878992127,0.01083916,108900.0,108890.0,0.37347633]
[1761878995026,0.001,108900.0,108890.0,0.37347633]
[1761878995237,0.001,108900.0,108890.0,0.77517047]
[1761878995498,0.001,108900.0,108890.0,0.37347633]
[1761878995721,0.001,108900.0,108890.0,0.46329534]
[1761878996331,0.001,108900.0,108890.0,0.37347633]
[1761878996548,0.01079911,108900.0,108890.0,0.37347633]
[1761878996998,0.001,108900.0,108890.0,0.37347633]
[1761878997239,0.001,108900.0,108890.0,0.77517047]
[1761878997445,0.001,108900.0,108890.0,0.86498948]
[1761878997715,0.001,108900.0,108890.0,0.95480849]
[1761878998300,0.001,108900.0,108890.0,0.54611435]
[1761878998482,0.001,108900.0,108890.0,0.94780849]
[1761878998685,0.002,108900.0,108890.0,0.95980849]
[1761878999593,0.002,108900.0,108890.0,0.95480849]
[1761878999795,0.001,108900.0,108890.0,0.95480849]
[1761879000059,0.001,108900.0,108890.0,0.96080849]
[1761879000237,0.002,108900.0,108890.0,0.96080849]
[1761879000640,0.002,108900.0,108890.0,0.55911435]
[1761879000845,0.002,108900.0,108890.0,0.46929534]
[1761879001296,0.002,108900.0,108890.0,0.37947633]
[1761879001736,2.342,108900.0,108890.0,0.37947633]
[1761879001944,2.3608641,108900.0,108890.0,0.37947633]
[1761879002161,2.45068311,108900.0,108890.0,0.01862474]
[1761879002363,2.44968311,108900.0,108890.0,0.01262474]
[1761879002690,2.69845603,108900.0,108890.0,0.01562474]
[1761879002925,2.72198832,108900.0,108890.0,0.00362474]
[1761879003119,2.72198832,108900.0,108890.0,0.00062474]
[1761879003328,2.72198832,108900.0,108890.0,0.00862474]
[1761879003700,2.69745603,108900.0,108890.0,0.00862474]
[1761879003936,2.69745603,108900.0,108890.0,0.00062474]
[1761879004139,2.69745603,108900.0,108890.0,0.00162474]
[1761879004682,2.69745603,108900.0,108890.0,0.00062474]
[1761879004882,2.76794359,108900.0,108890.0,0.00062474]
[1761879005010,2.76894359,108900.0,108890.0,0.00062474]
[1761879005456,2.78335008,108900.0,108890.0,0.00062474]
[1761879005867,2.60069536,108900.0,108890.0,0.00062474]
[1761879006068,2.57175944,108900.0,108890.0,0.05566474]
[1761879006312,2.57175944,108900.0,108890.0,0.00062474]
[1761879006468,2.60069536,108900.0,108890.0,0.00062474]
[1761879006890,2.58528887,108900.0,108890.0,0.00062474]
[1761879007140,2.58428887,108900.0,108890.0,0.00062474]
[1761879007342,2.58428887,108900.0,108890.0,0.00162474]
[1761879007541,2.76794359,108900.0,108890.0,0.00162474]
[1761879009551,2.58428887,108900.0,108890.0,0.00162474]
[1761879009763,2.59869516,108900.0,108890.0,0.00162474]
[1761879010591,2.19357696,108900.0,108890.0,0.19574189]
[1761879010857,2.53357696,108900.0,108890.0,0.36104633]
[1761879011214,2.19357696,108900.0,108890.0,0.28039633]
[1761879011416,2.53357696,108900.0,108890.0,0.28039633]
[1761879012275,2.53357696,108900.0,108890.0,0.09672474]
[1761879012480,2.53357696,108900.0,108890.0,0.00162474]
[1761879012481,2.56251288,108900.0,108890.0,0.00162474]
[1761879013372,2.59869516,108900.0,108890.0,0.00162474]
[1761879013575,2.78234988,108900.0,108890.0,0.00162474]
[1761879015852,2.78234988,108900.0,108870.0,0.00016856]
[1761879015853,0.18368846,108880.0,108870.0,0.00016856]
[1761879016075,2.66955385,108880.0,108870.0,5.11e-06]
[1761879016282,2.66955385,108880.0,108830.0,8e-05]
[1761879016283,2.34,108840.0,108830.0,8e-05]
[1761879016486,2.44868311,108840.0,108830.0,8e-05]
[1761879017508,2.63292254,108840.0,108830.0,8e-05]
[1761879017760,2.44916657,108840.0,108820.0,0.0644]
[1761879017984,2.08981901,108830.0,108820.0,0.0644]
[1761879018220,1.87600745,108830.0,108820.0,0.0644]
[1761879018453,1.87600745,108830.0,108820.0,0.11095]
[1761879018454,2.08981901,108830.0,108820.0,0.11095]
[1761879018875,2.15898053,108830.0,108820.0,0.11095]
[1761879019328,2.15898053,108830.0,108820.0,0.11295]
[1761879019556,2.15898053,108830.0,108820.0,0.11695]
[1761879020129,2.1733937,108830.0,108820.0,0.11695]
[1761879021630,2.1733937,108830.0,108820.0,0.11852432]
[1761879022297,2.07175231,108830.0,108820.0,0.11852432]
[1761879023486,2.25552516,108830.0,108820.0,0.00757432]
[1761879023947,2.25552516,108830.0,108820.0,0.05412432]
[1761879024264,2.07175231,108830.0,108820.0,0.05412432]
[1761879024505,2.05733914,108830.0,108820.0,0.12649432]
[1761879024932,2.05733914,108830.0,108820.0,0.14487329]
[1761879026027,2.05733914,108830.0,108820.0,0.12649432]
[1761879027347,1.86063071,108830.0,108820.0,0.12649432]
[1761879030257,1.86063071,108830.0,108820.0,0.16442432]
[1761879033289,2.09986853,108830.0,108820.0,0.00757432]
[1761879033523,2.46880445,108830.0,108820.0,0.00757432]
[1761879033797,2.49643663,108830.0,108820.0,0.00757432]
[1761879034269,2.51329211,108830.0,108820.0,0.00757432]
[1761879034979,2.53776534,108830.0,108820.0,0.00757432]
[1761879035446,2.53776534,108830.0,108820.0,0.00557432]
[1761879035737,2.53776534,108830.0,108820.0,0.00157432]
[1761879035960,2.53776534,108830.0,108820.0,0.00257432]
[1761879035961,2.53876534,108830.0,108820.0,0.00257432]
[1761879036891,2.53976534,108830.0,108820.0,0.00257432]
[1761879037025,2.53976534,108830.0,108820.0,0.00157432]
[1761879037251,2.54076534,108830.0,108820.0,0.00157432]
[1761879037702,2.55076533,108830.0,108820.0,0.00157432]
[1761879037928,2.55076533,108830.0,108820.0,1.063e-05]
[1761879038367,0.52384042,108790.0,108780.0,0.0004]
[1761879038569,2.35144778,108790.0,108780.0,0.0004]
[1761879038760,2.3803837,108790.0,108780.0,0.0004]
[1761879038982,2.3803837,108790.0,108780.0,0.00130023]
[1761879039195,2.40802802,108790.0,108780.0,0.00130023]
[1761879039419,2.2241876,108790.0,108780.0,0.00330023]
[1761879039629,2.22423591,108790.0,108780.0,0.00330023]
[1761879040063,2.24133264,108790.0,108780.0,0.00330023]
[1761879040313,2.19683284,108790.0,108780.0,0.05285023]
[1761879040987,2.2112521,108790.0,108780.0,0.00630023]
[1761879041198,2.39509252,108790.0,108780.0,0.00630023]
[1761879041419,2.42402844,108790.0,108780.0,0.00630023]
[1761879041638,2.44087576,108790.0,108780.0,0.00630023]
[1761879043170,2.25703534,108790.0,108780.0,0.00630023]
[1761879043431,2.41193984,108790.0,108780.0,0.00630023]
[1761879043891,2.22809942,108790.0,108780.0,0.05408023]
[1761879045403,2.41193984,108790.0,108780.0,0.00630023]
[1761879045612,2.44087576,108790.0,108780.0,0.00630023]
[1761879046414,2.25703534,108790.0,108780.0,0.00630023]
[1761879046580,2.44087576,108790.0,108780.0,0.00630023]
[1761879047992,2.46851927,108790.0,108780.0,0.00630023]
[1761879048545,0.08809146,108790.0,108780.0,0.30850755]
[1761879048719,0.02431794,108790.0,108780.0,0.30850755]
[1761879049031,0.00989868,108790.0,108780.0,0.30850755]
[1761879049239,4.831e-05,108790.0,108780.0,0.30650755]
[1761879049449,2.51688572,108820.0,108810.0,0.18380663]
[1761879049657,2.12647235,108820.0,108810.0,0.15237]
[1761879049859,2.12647235,108820.0,108810.0,0.0818]
[1761879050062,2.44958663,108820.0,108810.0,0.0818]
[1761879050266,2.46647491,108820.0,108810.0,0.0818]
[1761879050834,2.476223,108820.0,108810.0,0.0818]
[1761879051229,2.476223,108820.0,108810.0,0.0888]
[1761879051430,2.476223,108820.0,108810.0,0.27260663]
[1761879051628,2.476223,108820.0,108810.0,0.34317663]
[1761879052040,2.38393115,108820.0,108810.0,0.34317663]
[1761879054887,2.38393115,108820.0,108810.0,0.34340162]
[1761879057103,2.36951571,108820.0,108810.0,0.34340162]
[1761879059540,2.36942382,108820.0,108810.0,0.34340162]
[1761879060130,2.02942382,108820.0,108810.0,0.34340162]
[1761879060334,0.00048493,108820.0,108810.0,0.48934484]
[1761879061627,0.00048493,108820.0,108810.0,0.48234484]
[1761879061829,0.00048493,108820.0,108810.0,0.48834484]
[1761879061978,0.00048493,108820.0,108810.0,0.49634484]
[1761879062180,0.00048493,108820.0,108810.0,0.44022063]
[1761879063604,1e-08,108820.0,108810.0,1.49197561]
[1761879063815,1e-08,108820.0,108810.0,1.53815788]
[1761879064915,1e-08,108820.0,108810.0,1.53015788]
[1761879065120,1e-08,108820.0,108810.0,1.61997689]
[1761879065326,1e-08,108840.0,108810.0,0.9312219]
[1761879065527,2.0,108880.0,108870.0,0.18370533]
[1761879065686,2.0,108880.0,108870.0,0.26550533]
[1761879065887,0.02761923,108890.0,108880.0,0.18368846]
[1761879066150,2.0,108920.0,108900.0,0.18365468]
[1761879066323,2.58981901,108910.0,108900.0,0.18365468]
[1761879066518,2.10902922,108910.0,108900.0,0.23143468]
[1761879066740,2.10902922,108910.0,108900.0,0.23157987]
[1761879067058,2.44902922,108910.0,108900.0,0.23157987]
[1761879067194,2.08981901,108910.0,108900.0,0.23157987]
[1761879067619,2.09181901,108910.0,108900.0,0.30214987]
[1761879067827,2.42981901,108910.0,108900.0,0.30214987]
[1761879068031,2.43934769,108910.0,108900.0,0.30214987]
[1761879068591,2.43934769,108910.0,108900.0,0.30209987]
[1761879069115,2.01052868,108910.0,108900.0,0.30209987]
[1761879069318,2.35052868,108910.0,108900.0,0.30209987]
[1761879069760,2.01052868,108910.0,108900.0,0.30209987]
[1761879069963,2.00952868,108910.0,108900.0,0.30209987]
[1761879070280,2.35052868,108910.0,108900.0,0.30209987]
[1761879070635,2.34952868,108910.0,108900.0,0.30209987]
[1761879071230,2.35152868,108910.0,108900.0,0.30209987]
[1761879071407,2.00357325,108910.0,108900.0,0.30209987]
[1761879071614,0.00157325,108910.0,108900.0,0.39191888]
[1761879072002,2.51460356,108940.0,108930.0,0.33497414]
[1761879072182,2.01460356,108940.0,108930.0,0.33497414]
[1761879072380,2.01527741,108940.0,108930.0,0.33497414]
[1761879072576,0.01527741,108940.0,108930.0,0.39023565]
[1761879072803,0.00087385,108940.0,108930.0,0.39023565]
[1761879073487,0.00087385,108940.0,108930.0,0.33497414]
[1761879073914,2.00087385,108940.0,108930.0,0.33497414]
[1761879074115,2.01063695,108940.0,108930.0,0.33497414]
[1761879074318,2.00187385,108940.0,108930.0,0.33497414]
[1761879074538,0.00187385,108940.0,108930.0,0.42479315]
[1761879074867,0.00087385,108940.0,108930.0,0.48903657]
[1761879075007,0.00087385,108940.0,108930.0,0.49003657]
[1761879075681,0.00087385,108940.0,108930.0,0.48903657]
[1761879075819,0.00087385,108940.0,108930.0,0.49303657]
[1761879076019,0.00087385,108940.0,108930.0,0.49703657]
[1761879077019,0.00087385,108940.0,108930.0,0.49703657]
[1761879079238,0.00087385,108940.0,108930.0,0.43279315]
[1761879081486,2.00087385,108940.0,108930.0,0.34297414]
[1761879081687,2.00087385,108940.0,108930.0,0.3422364]
[1761879082347,2.00087385,108940.0,108930.0,0.3382364]
[1761879082754,2.00087385,108940.0,108930.0,0.3392364]
[1761879082954,2.00087385,108940.0,108930.0,0.3352364]
[1761879083296,2.00087385,108940.0,108930.0,0.3362364]
[1761879085829,0.00087385,108940.0,108930.0,0.3362364]
[1761879087190,2.00087385,108940.0,108930.0,0.3362364]
[1761879087939,2.00087385,108940.0,108930.0,0.15437]
[1761879088140,2.34087385,108940.0,108930.0,0.26740414]
[1761879088902,2.34087385,108940.0,108930.0,0.26540414]
[1761879089116,2.35627318,108940.0,108930.0,0.26540414]
[1761879089467,2.35627318,108940.0,108930.0,0.32882414]
[1761879089855,2.34187385,108940.0,108930.0,0.32882414]
[1761879090313,0.34187385,108940.0,108930.0,0.32882414]
[1761879091821,0.34087385,108940.0,108930.0,0.33182414]
[1761879092265,0.34087385,108940.0,108930.0,0.33482414]
[1761879093150,0.34932986,108940.0,108930.0,0.32882414]
[1761879093366,0.34932986,108940.0,108930.0,0.33082414]
[1761879093558,2.34932986,108940.0,108930.0,0.26740414]
[1761879093783,2.34932986,108940.0,108930.0,0.33082414]
[1761879094320,2.36842205,108940.0,108930.0,0.33082414]
[1761879095011,2.36842205,108940.0,108930.0,0.26740414]
[1761879096069,2.36842205,108940.0,108930.0,0.26640414]
[1761879096227,2.36842205,108940.0,108930.0,0.32882414]
[1761879096579,2.36942205,108940.0,108930.0,0.32882414]
[1761879096778,2.36942205,108940.0,108930.0,0.37490897]
[1761879096993,2.36942205,108940.0,108930.0,0.32882414]
[1761879097199,0.36942205,108940.0,108930.0,0.32882414]
[1761879098008,0.02942205,108940.0,108930.0,0.32882414]
[1761879098142,0.01032986,108940.0,108930.0,0.32882414]
[1761879098542,0.01032986,108940.0,108930.0,0.41864315]
[1761879102609,2.01909219,108960.0,108950.0,0.25783044]
[1761879102815,2.03610371,108960.0,108950.0,0.25783044]
[1761879103021,2.03610371,108960.0,108950.0,0.32125044]
[1761879103813,2.03658954,108960.0,108950.0,0.32125044]
[1761879104048,2.03858954,108960.0,108950.0,0.32125044]
[1761879104470,2.04833852,108960.0,108950.0,0.32125044]
[1761879104675,2.38833852,108960.0,108950.0,0.32125044]
[1761879104882,2.39233852,108960.0,108950.0,0.32125044]
[1761879108282,2.39278761,108960.0,108950.0,0.32125044]
[1761879108865,2.38878761,108960.0,108950.0,0.32125044]
[1761879109085,2.39078761,108960.0,108950.0,0.32125044]
[1761879109626,2.05078761,108960.0,108950.0,0.32125044]
[1761879110030,0.05078761,108960.0,108950.0,0.32125044]
[1761879110180,0.3546839,108960.0,108950.0,0.32125044]
[1761879110384,0.36977609,108960.0,108950.0,0.32125044]
[1761879110622,0.37077609,108960.0,108950.0,0.32125044]
[1761879110974,2.0,109000.0,108990.0,0.18350307]
[1761879111176,2.01700749,109000.0,108990.0,0.30584592]
[1761879111404,2.35700749,109000.0,108990.0,0.30584592]
[1761879111661,2.36641987,109000.0,108990.0,0.30584592]
[1761879112273,2.37241987,109000.0,108990.0,0.35569738]
[1761879112468,2.37241987,109000.0,108990.0,0.30584592]
[1761879113492,2.36641987,109000.0,108990.0,0.30584592]
[1761879113806,2.36841987,109000.0,108990.0,0.30584592]
[1761879114019,2.36841987,109000.0,108990.0,0.30684592]
[1761879114215,2.36641987,109000.0,108990.0,0.30684592]
[1761879114734,2.37490247,109000.0,108990.0,0.30684592]
[1761879115145,2.35789498,109000.0,108990.0,0.30684592]
[1761879115265,2.46521399,109000.0,108990.0,0.00114519]
[1761879115493,2.5709064,109000.0,108990.0,0.00114519]
[1761879115698,2.51988018,109000.0,108990.0,0.00114519]
[1761879116094,2.52863018,109000.0,108990.0,0.00114519]
[1761879116316,2.52863018,109000.0,108990.0,0.00014519]
[1761879116871,2.53452794,109000.0,108990.0,0.00014519]
[1761879117288,2.54432366,109000.0,108990.0,0.25943826]
[1761879117490,2.52583975,109000.0,108990.0,0.00014519]
[1761879117687,2.56582366,109000.0,108990.0,0.00014519]
[1761879118259,2.56182366,109000.0,108990.0,0.00014519]
[1761879119332,2.56082366,109000.0,108990.0,0.00014519]
[1761879119537,2.59900594,109000.0,108990.0,0.00014519]
[1761879120621,2.59899569,109000.0,108990.0,0.00014519]
[1761879121752,2.78248192,109000.0,108990.0,0.00014519]
[1761879121976,2.82219494,109000.0,108990.0,0.00014519]
[1761879122435,2.83659415,109000.0,108990.0,0.00014519]
[1761879122910,2.83459415,109000.0,108990.0,0.00014519]
[1761879123137,2.85305637,109000.0,108990.0,0.00014519]
[1761879123364,2.85605637,109000.0,108990.0,0.00014519]
[1761879123591,2.86205637,109000.0,108990.0,0.00014519]
[1761879124516,2.86205307,109000.0,108990.0,0.00014519]
[1761879125145,2.84765386,109000.0,108990.0,0.00014519]
[1761879125867,2.63884745,109000.0,108990.0,0.00014519]
[1761879126240,2.82233368,109000.0,108990.0,0.00014519]
[1761879126387,2.26286354,109000.0,108990.0,0.00014519]
[1761879126821,2.2424707,109000.0,108990.0,0.00014519]
[1761879127086,2.5794707,109000.0,108990.0,0.00014519]
[1761879127309,2.8379207,109000.0,108990.0,0.00014519]
[1761879127484,2.8399207,109000.0,108990.0,0.00014519]
[1761879127682,2.8379207,109000.0,108990.0,0.00014519]
[1761879128501,2.8291707,109000.0,108990.0,0.00014519]
[1761879128664,2.8241707,109000.0,108990.0,0.00014519]
[1761879128860,2.8271707,109000.0,108990.0,0.00014519]
[1761879129267,3.02040693,109000.0,108990.0,0.00014519]
[1761879129454,2.7989082,109000.0,108990.0,0.00014519]
[1761879129681,2.82614211,109000.0,108990.0,0.00014519]
[1761879130671,2.85146229,109000.0,108990.0,0.00014519]
[1761879131073,2.82614211,109000.0,108990.0,0.00014519]
[1761879132095,2.85146229,109000.0,108990.0,0.00014519]
[1761879132299,2.88005855,109000.0,108990.0,0.00014519]
[1761879132925,2.87605855,109000.0,108990.0,0.00014519]
[1761879133303,2.88605855,109000.0,108990.0,0.00014519]
[1761879133663,2.64835854,109000.0,108990.0,9.11e-06]
[1761879133802,2.66135853,109000.0,108990.0,9.11e-06]
[1761879134850,2.65435853,109000.0,108990.0,9.11e-06]
[1761879135027,2.66035853,109000.0,108990.0,9.11e-06]
[1761879135427,2.65035854,109000.0,108990.0,9.11e-06]
[1761879135813,2.66035853,109000.0,108990.0,9.11e-06]
[1761879136219,2.62403836,109000.0,108990.0,9.11e-06]
[1761879136562,2.61403837,109000.0,108990.0,9.11e-06]
[1761879136950,3.11403837,109000.0,108990.0,9.11e-06]
[1761879137130,3.11103837,109000.0,108990.0,9.11e-06]
[1761879137333,3.12543414,109000.0,108990.0,9.11e-06]
[1761879137514,3.12243414,109000.0,108990.0,9.11e-06]
[1761879137917,3.09920023,109000.0,108990.0,9.11e-06]
[1761879138141,3.15175432,109000.0,108990.0,9.11e-06]
[1761879138342,3.1727543,109000.0,108990.0,9.11e-06]
[1761879138542,0.34,108950.0,108940.0,0.00083526]
[1761879138743,2.45784987,108950.0,108940.0,0.00083526]
[1761879139071,2.48778378,108950.0,108940.0,0.00083526]
[1761879139667,2.30421334,108950.0,108940.0,0.00083526]
[1761879140000,2.34185724,108950.0,108940.0,0.22401255]
[1761879140127,2.33915724,108950.0,108940.0,0.22601255]
[1761879140322,2.34185724,108950.0,108940.0,0.22601255]
[1761879140743,2.33915724,108950.0,108940.0,0.28325255]
[1761879140939,2.30297496,108950.0,108940.0,0.28325255]
[1761879141141,2.79450591,108950.0,108940.0,0.28325255]
[1761879141347,2.63710909,108950.0,108940.0,0.28325255]
[1761879141569,2.61864687,108950.0,108940.0,0.28725255]
[1761879142606,2.78058165,108950.0,108940.0,0.00683526]
[1761879142805,2.80734752,108950.0,108940.0,0.00683526]
[1761879143533,2.80734752,108950.0,108940.0,0.19042255]
[1761879143712,2.80734752,108950.0,108940.0,0.23001255]
[1761879144225,2.80464752,108950.0,108940.0,0.23001255]
[1761879145182,2.80734752,108950.0,108940.0,0.00683526]
[1761879146801,3.05701937,108950.0,108940.0,0.00683526]
[1761879147377,2.55431937,108950.0,108940.0,0.00683526]
[1761879147737,2.5687185,108950.0,108940.0,0.00683526]
[1761879148102,2.35792893,108950.0,108940.0,0.04642526]
[1761879148308,2.35522893,108950.0,108940.0,0.04642526]
[1761879148983,2.3408298,108950.0,108940.0,0.04642526]
[1761879149183,2.3435298,108950.0,108940.0,0.04642526]
[1761879149608,2.3435298,108950.0,108940.0,0.23001255]
[1761879149843,2.30464752,108950.0,108940.0,0.28725255]
[1761879150462,2.14541274,108950.0,108940.0,0.28725255]
[1761879150670,2.14541958,108950.0,108940.0,0.28725255]
[1761879151031,2.14541935,108950.0,108940.0,0.23001255]
[1761879151639,2.14541935,108950.0,108940.0,0.28725255]
[1761879152706,0.0001456,108950.0,108940.0,0.28725255]
[1761879153909,2.5002245,108970.0,108940.0,0.00683526]
[1761879154061,2.5002245,108970.0,108940.0,0.00732109]
[1761879154062,2.34219086,108950.0,108940.0,0.00732109]
[1761879154268,2.36904555,108950.0,108940.0,0.00732109]
[1761879154672,2.36634555,108950.0,108940.0,0.00732109]
[1761879155018,2.36904555,108950.0,108940.0,0.00732109]
[1761879155221,2.61374555,108950.0,108940.0,0.00332109]
[1761879155650,2.43017511,108950.0,108940.0,0.00332109]
[1761879155851,2.92382642,108950.0,108940.0,0.00332109]
[1761879156375,2.95374555,108950.0,108940.0,0.00132109]
[1761879156571,2.95374555,108950.0,108940.0,0.00232109]
[1761879157546,2.76747511,108950.0,108940.0,0.00232109]
[1761879158575,2.02685469,108950.0,108940.0,0.3010971]
[1761879158788,2.86685469,108950.0,108940.0,0.28273838]
[1761879158979,0.5,108950.0,108940.0,0.28273838]
[1761879159963,0.5,108950.0,108940.0,0.28773838]
[1761879160569,2.34,108960.0,108950.0,0.18355415]
[1761879160747,2.45674865,108960.0,108950.0,0.02918]
[1761879161585,2.45674865,108960.0,108950.0,0.30958044]
[1761879162367,2.45674865,108960.0,108950.0,0.31158044]
[1761879162677,2.45674865,108960.0,108950.0,0.30958044]
[1761879162879,2.45674865,108960.0,108950.0,0.31658044]
[1761879167411,2.36692964,108960.0,108950.0,0.31658044]
[1761879167608,0.36692964,108960.0,108950.0,0.31658044]
[1761879169004,0.0002245,108970.0,108960.0,0.18355359]
[1761879169005,2.0002245,108970.0,108960.0,0.18355359]
[1761879169225,2.02716535,108970.0,108960.0,0.27774359]
[1761879169428,0.01867121,108970.0,108960.0,0.27774359]
[1761879169578,0.0002245,108970.0,108960.0,0.27774359]
[1761879170210,0.0002245,108970.0,108960.0,0.27974359]
[1761879170601,0.0002245,108970.0,108960.0,0.28174359]
[1761879173407,0.0002245,108970.0,108960.0,0.33119299]
[1761879174810,0.0002245,108970.0,108960.0,0.28174359]
[1761879174992,0.0002245,108970.0,108960.0,0.27974359]
[1761879175397,0.0002245,108970.0,108960.0,0.28674359]
[1761879176322,0.0002245,108970.0,108960.0,0.28474359]
[1761879176556,0.0002245,108970.0,108960.0,0.28974359]
[1761879176710,0.0002245,108970.0,108960.0,0.429812]
[1761879177300,0.0002245,108970.0,108960.0,0.3795626]
[1761879178818,0.0002245,108970.0,108960.0,0.28974359]
[1761879180195,0.0002245,108970.0,108960.0,0.28274359]
[1761879180401,0.0002245,108970.0,108960.0,0.27774359]
[1761879180723,0.0002245,108970.0,108960.0,0.28074359]
[1761879181137,0.0002245,108970.0,108960.0,0.33009299]
[1761879181648,0.0002245,108970.0,108960.0,0.33509299]
[1761879183641,0.0002245,108970.0,108960.0,0.424912]
[1761879188380,0.0002245,108970.0,108960.0,0.3755626]
[1761879190368,1e-08,108970.0,108960.0,0.38556259]
[1761879190574,1e-08,108970.0,108960.0,0.39556258]
[1761879190780,1e-08,108970.0,108960.0,0.38556259]
[1761879191508,1e-08,108970.0,108960.0,0.39556258]
[1761879191695,1e-08,108970.0,108960.0,0.48038159]